bitfinex/quotes_BTCUSD_20250530
["timestamp","ask_amount","ask_price","bid_price","bid_amount"]
[1748568305703,0.53480471,105610.0,105600.0,0.61780273]
[1748568306057,0.53480471,105610.0,105600.0,0.21780273]
[1748568306268,0.53480471,105610.0,105600.0,0.20833322]
[1748568306449,0.53480471,105610.0,105600.0,0.60833322]
[1748568306651,0.19886344,105600.0,105590.0,0.32449045]
[1748568306888,0.19886344,105600.0,105590.0,0.23]
[1748568307766,0.19886344,105600.0,105590.0,0.231]
[1748568307964,0.53370344,105600.0,105590.0,0.231]
[1748568308568,0.19886344,105600.0,105590.0,0.42988228]
[1748568308767,0.53370344,105600.0,105590.0,0.43088237]
[1748568308970,0.53370344,105600.0,105590.0,0.232]
[1748568309173,0.53370344,105600.0,105590.0,0.24147059]
[1748568309371,0.52423393,105600.0,105590.0,0.232]
[1748568310737,0.52423393,105600.0,105590.0,0.632]
[1748568312171,0.58093393,105600.0,105590.0,0.232]
[1748568312618,0.58093393,105600.0,105590.0,0.632]
[1748568314670,0.18939393,105600.0,105590.0,0.632]
[1748568314871,0.52391393,105600.0,105590.0,0.632]
[1748568315109,0.52391393,105600.0,105590.0,0.83088237]
[1748568315110,0.18939393,105600.0,105590.0,0.83088237]
[1748568315231,0.52391393,105600.0,105590.0,0.632]
[1748568315717,0.18939393,105600.0,105590.0,0.632]
[1748568315925,0.52387393,105600.0,105590.0,0.632]
[1748568317132,0.52387393,105600.0,105590.0,0.64147059]
[1748568317340,0.52387393,105600.0,105590.0,0.84035278]
[1748568317547,0.18939393,105600.0,105590.0,0.84035278]
[1748568317783,0.52379393,105600.0,105590.0,0.84035278]
[1748568318360,0.00946951,105600.0,105590.0,0.84035278]
[1748568318569,0.21780237,105600.0,105590.0,0.84982283]
[1748568318783,0.01893821,105600.0,105590.0,0.97201534]
[1748568319105,0.01893821,105600.0,105590.0,1.00081534]
[1748568319357,0.01893821,105600.0,105590.0,1.00081659]
[1748568319771,0.00946897,105600.0,105590.0,1.00081659]
[1748568319950,0.01893803,105600.0,105590.0,1.00081659]
[1748568320177,0.20693143,105620.0,105610.0,0.19884462]
[1748568320355,0.20693143,105620.0,105600.0,0.21780165]
[1748568320356,0.54121143,105620.0,105600.0,0.21780165]
[1748568320784,0.00946871,105610.0,105600.0,0.61780165]
[1748568321138,0.35317733,105610.0,105600.0,0.61780183]
[1748568321561,0.21639915,105620.0,105610.0,0.1988448]
[1748568321829,0.55059915,105620.0,105610.0,0.0094688]
[1748568322045,0.01893643,105610.0,105600.0,0.60833214]
[1748568322253,0.02840442,105610.0,105600.0,0.61780156]
[1748568322407,0.03787268,105610.0,105600.0,0.73665551]
[1748568322570,0.04734121,105610.0,105600.0,0.73665551]
[1748568322779,0.03787268,105610.0,105600.0,0.73665551]
[1748568323679,0.0473413,105610.0,105600.0,0.73665551]
[1748568323841,0.02840424,105610.0,105600.0,0.33665551]
[1748568324093,0.03787268,105610.0,105600.0,0.36705551]
[1748568324275,0.03887268,105610.0,105600.0,0.76705551]
[1748568324683,0.04834139,105610.0,105600.0,0.76705551]
[1748568324868,0.0483422,105610.0,105600.0,0.76705551]
[1748568325271,0.0388734,105610.0,105600.0,0.76705551]
[1748568325470,0.0483422,105610.0,105600.0,0.76705551]
[1748568325767,0.0388734,105610.0,105600.0,0.76705551]
[1748568326611,0.0483422,105610.0,105600.0,0.76705551]
[1748568327601,0.0483422,105610.0,105600.0,0.75758645]
[1748568328024,0.22825012,105610.0,105600.0,0.76705632]
[1748568328234,0.22825012,105610.0,105600.0,0.77652556]
[1748568328450,0.22825012,105610.0,105600.0,0.78599471]
[1748568328659,0.03887412,105610.0,105600.0,0.78599471]
[1748568329071,0.02940532,105610.0,105600.0,0.78599408]
[1748568329913,0.02940523,105610.0,105600.0,0.78599408]
[1748568331353,0.02940523,105610.0,105600.0,0.70885569]
[1748568331784,0.01993661,105610.0,105600.0,0.76645569]
[1748568332001,0.001,105610.0,105600.0,1.40625799]
[1748568332211,0.001,105610.0,105600.0,1.41427511]
[1748568332429,0.001,105610.0,105600.0,1.07981434]
[1748568332642,0.01046808,105610.0,105600.0,1.08439311]
[1748568332852,0.001,105610.0,105600.0,1.08439311]
[1748568333072,0.001,105610.0,105600.0,1.09893396]
[1748568333508,0.001,105610.0,105600.0,1.09435519]
[1748568334835,0.001,105610.0,105600.0,1.42795519]
[1748568335919,0.001,105610.0,105600.0,1.43253396]
[1748568336138,0.001,105610.0,105600.0,1.43253225]
[1748568336350,0.001,105610.0,105600.0,1.42795348]
[1748568336817,0.001,105610.0,105600.0,1.43253225]
[1748568337247,0.001,105610.0,105600.0,1.42795348]
[1748568337657,0.001,105610.0,105600.0,1.43253225]
[1748568338074,0.001,105610.0,105600.0,1.43253173]
[1748568339361,0.001,105610.0,105600.0,1.77253173]
[1748568339586,0.001,105610.0,105600.0,6.06236184]
[1748568339794,0.001,105610.0,105600.0,5.71060884]
[1748568340217,0.00812215,105620.0,105610.0,0.55778132]
[1748568340432,0.00812215,105620.0,105610.0,0.6960671]
[1748568340690,0.22588302,105620.0,105610.0,0.32134505]
[1748568340908,0.02705714,105620.0,105610.0,0.73684855]
[1748568341332,0.03652423,105620.0,105610.0,0.74028166]
[1748568341565,0.01758942,105620.0,105610.0,0.74428166]
[1748568341771,0.01758942,105620.0,105610.0,0.77278166]
[1748568341993,0.00812215,105620.0,105610.0,0.77278166]
[1748568342218,0.00812215,105620.0,105610.0,2.24146951]
[1748568342647,0.00812215,105620.0,105610.0,1.42621551]
[1748568343071,0.00812215,105620.0,105610.0,1.75933551]
[1748568343486,0.00812215,105620.0,105610.0,2.09933551]
[1748568343727,0.00812215,105620.0,105610.0,2.10391498]
[1748568343941,0.01758924,105620.0,105610.0,2.10391498]
[1748568344151,0.00812215,105620.0,105610.0,2.10391498]
[1748568344356,0.00812215,105620.0,105610.0,2.21512187]
[1748568344572,0.00812215,105620.0,105610.0,2.21855597]
[1748568344779,0.00812215,105620.0,105610.0,2.21855593]
[1748568344983,0.00812215,105620.0,105610.0,1.77079578]
[1748568345405,0.00812215,105620.0,105610.0,2.21851578]
[1748568345609,0.01758942,105620.0,105610.0,1.16360278]
[1748568345812,0.00812215,105620.0,105610.0,1.73616778]
[1748568346880,0.00812215,105620.0,105610.0,1.73273387]
[1748568347521,0.00812215,105620.0,105610.0,1.73261387]
[1748568348160,0.00812215,105620.0,105610.0,1.73257387]
[1748568350572,0.00812215,105620.0,105610.0,1.73245387]
[1748568352317,0.00812215,105620.0,105610.0,6.65756887]
[1748568352519,0.00812215,105620.0,105610.0,6.21016887]
[1748568352724,0.00812215,105620.0,105610.0,6.65748887]
[1748568352954,0.00812215,105620.0,105610.0,6.32484887]
[1748568353157,0.00812215,105620.0,105610.0,6.62974887]
[1748568353590,0.00812215,105620.0,105610.0,6.65734887]
[1748568353793,0.00812215,105620.0,105610.0,6.21006887]
[1748568354211,0.00812215,105620.0,105610.0,6.65730887]
[1748568356440,0.00812215,105620.0,105610.0,6.21006887]
[1748568356655,0.00812215,105620.0,105610.0,6.65718887]
[1748568357091,0.00812215,105620.0,105610.0,6.82718887]
[1748568357679,0.00812215,105620.0,105610.0,6.82710887]
[1748568358979,0.00812215,105620.0,105610.0,6.38006887]
[1748568359201,0.00812215,105620.0,105610.0,6.8215694]
[1748568361742,0.00812215,105620.0,105610.0,6.8715694]
[1748568361966,0.00812215,105620.0,105610.0,6.94447336]
[1748568362389,0.00812215,105620.0,105610.0,6.91290912]
[1748568363067,0.00812215,105620.0,105610.0,6.94447336]
[1748568364451,0.00812215,105620.0,105610.0,6.88094886]
[1748568364674,0.00812215,105620.0,105610.0,6.88066886]
[1748568364881,0.00812215,105620.0,105610.0,1.83066886]
[1748568365101,0.00812215,105620.0,105610.0,6.89066886]
[1748568365968,0.00812215,105620.0,105610.0,1.84066886]
[1748568366187,0.00812215,105620.0,105610.0,6.89066886]
[1748568366396,0.0058345,105620.0,105610.0,6.89066886]
[1748568366809,0.0058345,105620.0,105610.0,6.8812894]
[1748568367226,6e-05,105650.0,105640.0,2.22965532]
[1748568367442,6e-05,105650.0,105640.0,2.47534269]
[1748568367879,6e-05,105650.0,105640.0,2.87534269]
[1748568368313,6e-05,105650.0,105640.0,1.57046269]
[1748568368545,0.00106,105650.0,105640.0,6.62046269]
[1748568368788,0.00106,105650.0,105640.0,6.58699369]
[1748568369001,0.00106,105650.0,105640.0,6.54157369]
[1748568369652,6e-05,105650.0,105640.0,6.61589427]
[1748568372871,6e-05,105650.0,105640.0,6.62045521]
[1748568373308,6e-05,105650.0,105640.0,6.61589427]
[1748568373742,6e-05,105650.0,105640.0,1.56589427]
[1748568373970,6e-05,105650.0,105640.0,6.61589427]
[1748568374402,6e-05,105650.0,105640.0,6.62045349]
[1748568374612,6e-05,105650.0,105640.0,2.23862127]
[1748568374859,6e-05,105650.0,105640.0,4.82638437]
[1748568375949,6e-05,105650.0,105640.0,5.35131437]
[1748568376157,6e-05,105650.0,105640.0,4.90607437]
[1748568376363,6e-05,105650.0,105640.0,5.35123437]
[1748568376990,6e-05,105650.0,105640.0,6.61993337]
[1748568377864,6e-05,105650.0,105640.0,1.56993337]
[1748568378072,6e-05,105650.0,105640.0,6.61993337]
[1748568378280,0.01735476,105660.0,105650.0,2.7661307]
[1748568378495,0.01750167,105660.0,105650.0,2.86060187]
[1748568378943,0.01750167,105660.0,105650.0,3.26060187]
[1748568379589,0.01950167,105660.0,105650.0,3.26060187]
[1748568379795,0.02050167,105660.0,105650.0,3.26060187]
[1748568380215,0.01950167,105660.0,105650.0,3.26060187]
[1748568380425,0.01950167,105660.0,105650.0,3.31097472]
[1748568380631,0.01950167,105660.0,105650.0,3.30997472]
[1748568380845,0.01750167,105660.0,105650.0,3.25063772]
[1748568381473,0.01750167,105660.0,105650.0,3.29000872]
[1748568381698,0.01750167,105660.0,105650.0,3.16191872]
[1748568381900,0.01750167,105660.0,105650.0,3.14265972]
[1748568382105,0.01750167,105660.0,105650.0,3.14365972]
[1748568382564,0.01750167,105660.0,105650.0,3.53005372]
[1748568383183,0.01750167,105660.0,105650.0,2.63939972]
[1748568383397,0.01750167,105660.0,105650.0,1.55162772]
[1748568384458,0.01750167,105660.0,105650.0,1.55618869]
[1748568385320,0.16571595,105680.0,105670.0,0.19873171]
[1748568385549,0.18931847,105690.0,105680.0,0.00946252]
[1748568385550,0.21761642,105690.0,105680.0,0.00946252]
[1748568385756,0.21761642,105690.0,105670.0,0.28032242]
[1748568385757,0.01892425,105680.0,105670.0,0.29924827]
[1748568385967,0.04662425,105680.0,105670.0,0.69924827]
[1748568386416,0.04862389,105680.0,105670.0,0.69924827]
[1748568386624,0.04962389,105680.0,105670.0,0.69924827]
[1748568386834,0.05908614,105680.0,105670.0,0.69924827]
[1748568387695,0.06854786,105680.0,105670.0,0.69924827]
[1748568389172,0.05908561,105680.0,105670.0,0.71844771]
[1748568389402,0.06854786,105680.0,105670.0,0.71844771]
[1748568389621,0.26637515,105680.0,105670.0,0.4]
[1748568390068,0.23571475,105660.0,105650.0,0.19270437]
[1748568390288,0.23571475,105660.0,105650.0,0.29928822]
[1748568390289,0.07352783,105660.0,105650.0,0.29928822]
[1748568390504,0.08299197,105660.0,105650.0,0.7087528]
[1748568390719,0.0924553,105660.0,105650.0,0.7087528]
[1748568390930,0.08299116,105660.0,105650.0,0.7087528]
[1748568391146,0.0924553,105660.0,105650.0,0.7087528]
[1748568391354,0.09245512,105660.0,105650.0,0.7087528]
[1748568391568,0.0271,105660.0,105650.0,0.71215287]
[1748568391778,0.07482567,105670.0,105660.0,0.21767809]
[1748568391990,0.04502558,105670.0,105660.0,0.30873204]
[1748568392199,0.06395197,105670.0,105660.0,0.31213211]
[1748568392650,0.05448873,105670.0,105660.0,0.30873204]
[1748568393066,0.60443768,105680.0,105670.0,0.20819468]
[1748568393280,0.0283,105680.0,105670.0,0.30871142]
[1748568393499,0.04722371,105680.0,105670.0,0.30871142]
[1748568393712,0.05668596,105680.0,105670.0,0.30871142]
[1748568393980,0.05668596,105680.0,105670.0,0.70871142]
[1748568394422,0.05668596,105680.0,105670.0,0.71211376]
[1748568394633,0.04722371,105680.0,105670.0,0.71211376]
[1748568395023,0.05022371,105680.0,105670.0,0.71211376]
[1748568395432,0.04076172,105680.0,105670.0,0.71211376]
[1748568395621,0.0313,105680.0,105670.0,0.71211376]
[1748568396067,0.0407619,105680.0,105670.0,0.71211376]
[1748568396274,0.0313,105680.0,105670.0,0.71211376]
[1748568396687,0.003,105680.0,105670.0,0.71211597]
[1748568396897,0.003,105680.0,105670.0,0.31211597]
[1748568397113,0.003,105680.0,105670.0,1.02051507]
[1748568397525,0.003,105680.0,105670.0,1.41711052]
[1748568399078,0.003,105680.0,105670.0,1.47321052]
[1748568399280,0.003,105680.0,105670.0,0.76821411]
[1748568399549,0.003,105680.0,105670.0,5.21176521]
[1748568399756,0.003,105680.0,105670.0,5.20836252]
[1748568400373,0.003,105680.0,105670.0,1.43965052]
[1748568400590,0.003,105680.0,105670.0,5.50810489]
[1748568400802,0.003,105680.0,105670.0,1.86962389]
[1748568401022,0.07618086,105700.0,105690.0,0.21761647]
[1748568401233,0.05774971,105700.0,105690.0,0.30867042]
[1748568401445,0.06721008,105700.0,105690.0,0.30867042]
[1748568401678,0.05774962,105700.0,105690.0,0.30867042]
[1748568401896,0.06720973,105700.0,105690.0,0.30867042]
[1748568402113,0.05774962,105700.0,105690.0,0.30867042]
[1748568402336,0.02994971,105700.0,105690.0,0.31207322]
[1748568402541,0.02494962,105700.0,105690.0,0.31207322]
[1748568402785,0.04887002,105700.0,105690.0,0.31207322]
[1748568402990,0.03940973,105700.0,105690.0,0.31207322]
[1748568403201,0.03940973,105700.0,105690.0,0.70867042]
[1748568403628,0.03940973,105700.0,105690.0,0.71207322]
[1748568403842,0.03940973,105700.0,105690.0,0.7178071]
[1748568404058,0.04887002,105700.0,105690.0,0.7178071]
[1748568404272,0.04587002,105700.0,105690.0,0.7144043]
[1748568404500,0.04387002,105700.0,105690.0,0.7144043]
[1748568404711,0.04387002,105700.0,105690.0,0.7154043]
[1748568404916,0.04387002,105700.0,105690.0,0.7164043]
[1748568405341,0.03440973,105700.0,105690.0,0.7164043]
[1748568405552,0.03440973,105700.0,105690.0,0.7154043]
[1748568405816,0.04387002,105700.0,105690.0,0.7164043]
[1748568406051,0.03440973,105700.0,105690.0,0.7164043]
[1748568406262,0.04387002,105700.0,105690.0,0.7198071]
[1748568406468,0.04387002,105700.0,105690.0,0.7164043]
[1748568406945,0.05333057,105700.0,105690.0,0.71067042]
[1748568407200,0.04387002,105700.0,105690.0,0.71067042]
[1748568407426,0.03440973,105700.0,105690.0,0.71067042]
[1748568407632,0.02494953,105700.0,105690.0,0.71067042]
[1748568408262,0.02474953,105700.0,105690.0,0.71067042]
[1748568408492,0.0342099,105700.0,105690.0,0.71067042]
[1748568408715,0.04366993,105700.0,105690.0,0.71067042]
[1748568409860,0.03420964,105700.0,105690.0,0.71067042]
[1748568410068,0.05313021,105700.0,105690.0,0.71067042]
[1748568410272,0.05313021,105700.0,105690.0,0.31067042]
[1748568410479,0.27044558,105700.0,105690.0,0.29174815]
[1748568410685,0.26098547,105700.0,105690.0,0.7012096]
[1748568410892,0.26098547,105700.0,105690.0,0.71067096]
[1748568411519,0.2420649,105700.0,105690.0,0.7012096]
[1748568411743,0.24234585,105700.0,105690.0,0.71067087]
[1748568411934,0.24234585,105700.0,105690.0,0.71067096]
[1748568412134,0.24234585,105700.0,105690.0,0.72013223]
[1748568412350,0.23288583,105700.0,105690.0,0.71067096]
[1748568412556,0.26168652,105700.0,105690.0,0.72013214]
[1748568412764,0.27114725,105700.0,105690.0,0.71067096]
[1748568412975,0.26168696,105700.0,105690.0,0.72013223]
[1748568413212,0.25668696,105700.0,105690.0,0.72013223]
[1748568413830,0.24722641,105700.0,105690.0,0.31067096]
[1748568414043,0.24722641,105700.0,105690.0,0.32013223]
[1748568414251,0.24722641,105700.0,105690.0,0.402]
[1748568414252,0.6680144,105700.0,105690.0,0.402]
[1748568414465,0.6680144,105700.0,105690.0,0.002]
[1748568415513,0.98819376,105700.0,105690.0,0.002]
[1748568419794,0.01099029,105700.0,105690.0,1.87790025]
[1748568420011,0.01099029,105700.0,105690.0,0.72310925]
[1748568420219,0.01099029,105700.0,105690.0,3.51627728]
[1748568420431,0.01099029,105700.0,105690.0,3.9128793]
[1748568420664,0.01099029,105700.0,105690.0,1.5735933]
[1748568421109,0.01099029,105700.0,105690.0,1.7739753]
[1748568421328,0.01099029,105700.0,105690.0,0.00653656]
[1748568421329,1.39925281,105700.0,105690.0,0.00653656]
[1748568421551,2.00661226,105700.0,105690.0,0.002]
[1748568421772,2.04074323,105700.0,105690.0,0.002]
[1748568422205,1.6152079,105700.0,105690.0,0.002]
[1748568422440,1.58107693,105700.0,105690.0,0.001]
[1748568422657,1.97486492,105700.0,105690.0,0.001]
[1748568422864,1.58107693,105700.0,105690.0,0.001]
[1748568423079,0.02839161,105660.0,105650.0,0.67499825]
[1748568423341,0.02839161,105660.0,105650.0,0.75658735]
[1748568423342,0.217678,105660.0,105650.0,0.75658735]
[1748568423558,0.217678,105660.0,105650.0,0.78944793]
[1748568423559,0.22714231,105660.0,105650.0,0.78944793]
[1748568423784,0.22714231,105660.0,105650.0,0.78944792]
[1748568423995,0.22714222,105660.0,105650.0,0.79767957]
[1748568424206,0.21767791,105660.0,105650.0,0.79244792]
[1748568424426,0.23660644,105660.0,105650.0,0.58421579]
[1748568424647,0.22714213,105660.0,105650.0,0.60191247]
[1748568424855,0.22714213,105660.0,105650.0,0.17775058]
[1748568425077,0.22714213,105660.0,105650.0,0.15215058]
[1748568425286,0.22714213,105660.0,105650.0,0.51815071]
[1748568425287,0.20821466,105660.0,105650.0,0.51815071]
[1748568425720,0.20821466,105660.0,105650.0,0.53245035]
[1748568425957,0.20821466,105660.0,105650.0,0.51474962]
[1748568426167,0.20821466,105660.0,105650.0,0.53246834]
[1748568426375,0.20821466,105660.0,105650.0,0.51474962]
[1748568426803,0.20821466,105660.0,105650.0,0.53246834]
[1748568427021,0.60200265,105660.0,105650.0,0.68474962]
[1748568427476,0.20821466,105660.0,105650.0,0.68474962]
[1748568427692,0.62730265,105660.0,105650.0,0.42369567]
[1748568428125,0.23351466,105660.0,105650.0,0.42369567]
[1748568428341,0.60200265,105660.0,105650.0,0.42369567]
[1748568430303,0.62810265,105660.0,105650.0,0.42369567]
[1748568431386,0.60200265,105660.0,105650.0,0.42369567]
[1748568432470,0.21447826,105680.0,105660.0,0.00946387]
[1748568432693,0.19871299,105680.0,105670.0,0.09105395]
[1748568432913,0.19871299,105680.0,105670.0,0.11665395]
[1748568433113,0.19871299,105680.0,105670.0,0.12611728]
[1748568433323,0.59250098,105680.0,105670.0,0.12611728]
[1748568433551,0.59250098,105680.0,105670.0,0.10051728]
[1748568433773,0.19871299,105680.0,105670.0,0.29924899]
[1748568433979,0.19871299,105680.0,105670.0,0.10051737]
[1748568434391,0.19871299,105680.0,105670.0,0.1099807]
[1748568434605,0.19871299,105680.0,105670.0,0.09105395]
[1748568434826,0.19871299,105680.0,105670.0,0.10051737]
[1748568434827,0.59320167,105680.0,105670.0,0.10051737]
[1748568435506,0.00070069,105680.0,105670.0,0.37027502]
[1748568435764,0.01962431,105680.0,105670.0,1.54460402]
[1748568436021,0.02908639,105680.0,105670.0,1.94460402]
[1748568436278,0.00070069,105680.0,105670.0,1.96368134]
[1748568437276,0.00070069,105680.0,105670.0,1.96707384]
[1748568437528,0.00070069,105680.0,105670.0,1.84926334]
[1748568437529,0.0101625,105680.0,105670.0,1.84926334]
[1748568437786,0.00070069,105680.0,105670.0,1.84926334]
[1748568438024,0.00070069,105680.0,105670.0,2.29038334]
[1748568438497,0.00070069,105680.0,105670.0,2.29377804]
[1748568438736,0.0101625,105680.0,105670.0,2.29377804]
[1748568439240,0.00070069,105680.0,105670.0,2.29373804]
[1748568440161,0.00070069,105680.0,105670.0,2.29034334]
[1748568440587,0.00070069,105680.0,105670.0,1.96146334]
[1748568442030,0.00070069,105680.0,105670.0,2.13146334]
[1748568446522,0.01016241,105680.0,105670.0,1.85438334]
[1748568446753,0.20887567,105680.0,105670.0,1.12035774]
[1748568446967,0.20887567,105680.0,105670.0,0.93108927]
[1748568447250,0.20887567,105680.0,105670.0,0.78780921]
[1748568447251,0.62726366,105680.0,105670.0,0.78780921]
[1748568447491,0.94640158,105680.0,105670.0,0.58907732]
[1748568448057,0.94640158,105680.0,105670.0,0.18907732]
[1748568448058,0.97240158,105680.0,105670.0,0.18907732]
[1748568448335,0.97240158,105680.0,105670.0,0.01907732]
[1748568448790,0.98139846,105680.0,105670.0,0.01907732]
[1748568449004,0.19873171,105670.0,105660.0,0.4]
[1748568449033,0.22433171,105670.0,105660.0,0.40946431]
[1748568449467,0.6181197,105670.0,105660.0,0.40946431]
[1748568449827,0.60865646,105670.0,105660.0,0.48]
[1748568450627,0.60865646,105670.0,105660.0,0.6787507]
[1748568450823,0.60865646,105670.0,105660.0,0.68821492]
[1748568451258,0.01892621,105670.0,105660.0,0.70714293]
[1748568451430,0.02838963,105670.0,105660.0,0.7166068]
[1748568451843,0.2176581,105670.0,105660.0,0.7166068]
[1748568452033,0.2176581,105670.0,105660.0,0.3166068]
[1748568452232,0.2176581,105670.0,105660.0,0.31660627]
[1748568452436,0.2176581,105670.0,105660.0,0.28821466]
[1748568452690,0.2176581,105670.0,105660.0,0.68821466]
[1748568453343,0.02838963,105670.0,105660.0,0.68821466]
[1748568453553,0.2176581,105670.0,105660.0,0.69767862]
[1748568454921,0.20819513,105670.0,105660.0,0.69767862]
[1748568455778,0.20819513,105670.0,105660.0,0.29767862]
[1748568456026,0.34794467,105680.0,105670.0,0.21765801]
[1748568456265,0.36686935,105680.0,105670.0,0.23658386]
[1748568456489,0.36686935,105680.0,105670.0,0.23658332]
[1748568456921,0.36686926,105680.0,105670.0,0.23658332]
[1748568457131,0.35836692,105680.0,105670.0,0.23658332]
[1748568457341,0.36782926,105680.0,105670.0,0.23658332]
[1748568457546,0.36782926,105680.0,105670.0,0.26308332]
[1748568458184,0.37729169,105680.0,105670.0,0.26308332]
[1748568458599,0.32990069,105680.0,105670.0,0.37324323]
[1748568458816,0.3393625,105680.0,105670.0,0.39994323]
[1748568459464,0.32990069,105680.0,105670.0,0.39994323]
[1748568459676,0.33936259,105680.0,105670.0,0.79994323]
[1748568460777,0.3393625,105680.0,105670.0,0.79994323]
[1748568461409,0.3488244,105680.0,105670.0,0.79994323]
[1748568462676,0.36774864,105680.0,105670.0,0.39994323]
[1748568463084,0.36774856,105680.0,105670.0,0.79994323]
[1748568463504,0.03954856,105680.0,105670.0,0.79994323]
[1748568463715,0.00170069,105680.0,105670.0,0.79994323]
[1748568466275,0.00170069,105680.0,105670.0,2.73029008]
[1748568466927,0.00170069,105680.0,105670.0,3.24185008]
[1748568467840,0.00170069,105680.0,105670.0,2.40230991]
[1748568468072,0.02062511,105680.0,105670.0,0.95053795]
[1748568468277,0.22880062,105680.0,105670.0,0.96000119]
[1748568468491,0.22880062,105680.0,105670.0,0.94263625]
[1748568468702,0.22880062,105680.0,105670.0,0.93317319]
[1748568468905,0.22880062,105680.0,105670.0,0.95209922]
[1748568469106,0.21933854,105680.0,105670.0,0.9142468]
[1748568469333,0.21933854,105680.0,105670.0,0.93317337]
[1748568469542,0.2098762,105680.0,105670.0,0.92371013]
[1748568470375,0.2098762,105680.0,105670.0,0.93317337]
[1748568470614,0.2098762,105680.0,105670.0,0.94263634]
[1748568470820,0.2098762,105680.0,105670.0,0.95209922]
[1748568471243,0.2098762,105680.0,105670.0,0.93317337]
[1748568471442,0.2098762,105680.0,105670.0,0.97879931]
[1748568471443,0.02062529,105680.0,105670.0,0.97879931]
[1748568471654,0.34834529,105680.0,105670.0,1.00359931]
[1748568471858,0.35780781,105680.0,105670.0,1.00359931]
[1748568473311,0.35780719,105680.0,105670.0,1.00359868]
[1748568473534,0.03008719,105680.0,105670.0,1.00359868]
[1748568473734,0.02062467,105680.0,105670.0,1.00359868]
[1748568473954,0.02062476,105680.0,105670.0,1.00359868]
[1748568474602,0.00170069,105680.0,105670.0,1.00359868]
[1748568474811,0.0111625,105680.0,105670.0,1.00359868]
[1748568475008,0.00170069,105680.0,105670.0,1.00359868]
[1748568475616,0.01116241,105680.0,105670.0,1.00359868]
[1748568476034,0.00170069,105680.0,105670.0,1.00359868]
[1748568476652,0.01116241,105680.0,105670.0,1.00359868]
[1748568477091,0.0111625,105680.0,105670.0,1.00359868]
[1748568477206,0.00170069,105680.0,105670.0,1.00359868]
[1748568477410,0.01116241,105680.0,105670.0,1.00359868]
[1748568478392,0.00170069,105680.0,105670.0,1.00359868]
[1748568481920,0.0111625,105680.0,105670.0,1.00359868]
[1748568482336,0.00170069,105680.0,105670.0,1.00359868]
[1748568506568,0.00170069,105680.0,105670.0,0.55209868]
[1748568506569,0.09276328,105680.0,105670.0,0.55209868]
[1748568506787,0.86409128,105680.0,105670.0,0.09105395]
[1748568506995,0.86409128,105680.0,105660.0,0.08]
[1748568506996,0.56373171,105670.0,105660.0,0.08]
[1748568507205,0.91033194,105670.0,105660.0,0.08]
[1748568507414,1.70159987,105670.0,105660.0,0.08]
[1748568507627,1.71614072,105670.0,105660.0,0.08]
[1748568507846,1.71614072,105670.0,105650.0,0.01769567]
[1748568508058,1.36453923,105660.0,105650.0,0.01769567]
[1748568508264,1.36035713,105660.0,105650.0,0.01769567]
[1748568508475,1.3669527,105660.0,105650.0,0.01769567]
[1748568508683,1.49222804,105660.0,105650.0,0.01769567]
[1748568508901,1.01638286,105660.0,105650.0,0.01769567]
[1748568509118,1.41017085,105660.0,105650.0,0.01769567]
[1748568509325,1.08397085,105660.0,105650.0,0.01769567]
[1748568509531,1.07497409,105660.0,105650.0,0.01769567]
[1748568509744,1.79496208,105660.0,105650.0,0.01769567]
[1748568509954,1.89500658,105660.0,105650.0,0.01769567]
[1748568510163,1.89700658,105660.0,105650.0,0.01769567]
[1748568510815,1.90000658,105660.0,105650.0,0.01769567]
[1748568511255,1.89101603,105660.0,105650.0,0.01769567]
[1748568511502,1.79996208,105660.0,105650.0,0.01769567]
[1748568511631,1.40541409,105660.0,105650.0,0.01769567]
[1748568512368,1.0116261,105660.0,105650.0,0.01769567]
[1748568512579,1.40541409,105660.0,105650.0,0.01769567]
[1748568512802,1.42443909,105660.0,105650.0,0.01769567]
[1748568513403,0.64815909,105660.0,105650.0,0.01769567]
[1748568513629,1.05547409,105660.0,105650.0,0.01769567]
[1748568513814,1.04887852,105660.0,105650.0,0.01769567]
[1748568514011,1.05786787,105660.0,105650.0,0.01769567]
[1748568514194,1.04887852,105660.0,105650.0,0.01769567]
[1748568514600,0.65509053,105660.0,105650.0,0.01769567]
[1748568514797,1.04887852,105660.0,105650.0,0.01769567]
[1748568515037,0.72275852,105660.0,105650.0,0.01769567]
[1748568515243,1.04883852,105660.0,105650.0,0.01769567]
[1748568517476,0.61263852,105660.0,105650.0,0.01769567]
[1748568517677,1.04879852,105660.0,105650.0,0.01769567]
[1748568520129,0.61263852,105660.0,105650.0,0.01769567]
[1748568520284,0.72279852,105660.0,105650.0,0.01769567]
[1748568520494,1.04871852,105660.0,105650.0,0.01769567]
[1748568521632,1.45230651,105660.0,105650.0,0.01769567]
[1748568523077,1.01622651,105660.0,105650.0,0.01769567]
[1748568523276,1.45222651,105660.0,105650.0,0.01769567]
[1748568524505,0.21885053,105660.0,105650.0,0.01769567]
[1748568524706,0.92333852,105660.0,105650.0,0.03299567]
[1748568525168,0.92333852,105660.0,105650.0,0.02799567]
[1748568525646,0.01446378,105660.0,105650.0,0.12851474]
[1748568525875,0.03339125,105660.0,105650.0,0.35224847]
[1748568526078,0.03339125,105660.0,105650.0,0.36171332]
[1748568526079,0.05231961,105660.0,105650.0,0.36171332]
[1748568526286,0.05231944,105660.0,105650.0,0.3711779]
[1748568526489,0.05232015,105660.0,105650.0,0.5411779]
[1748568526692,0.04285637,105660.0,105650.0,0.52224865]
[1748568526896,0.04285637,105660.0,105650.0,0.53171323]
[1748568527033,0.03339215,105660.0,105650.0,0.53171323]
[1748568527247,0.04285637,105660.0,105650.0,0.53171323]
[1748568528820,0.04285637,105660.0,105650.0,0.93171323]
[1748568529448,0.03339215,105660.0,105650.0,0.93171323]
[1748568529654,0.02392765,105660.0,105650.0,0.93171323]
[1748568530121,0.005,105660.0,105650.0,0.93171323]
[1748568530337,0.005,105660.0,105650.0,3.28929723]
[1748568530567,0.00170069,105680.0,105670.0,2.57055965]
[1748568530786,0.00170069,105680.0,105670.0,2.7074596]
[1748568530995,0.00170069,105680.0,105670.0,3.04756045]
[1748568531852,0.00170069,105680.0,105670.0,5.16936945]
[1748568532487,0.00170069,105680.0,105670.0,5.23878145]
[1748568532639,0.00170069,105680.0,105670.0,5.23978145]
[1748568533051,0.00170069,105680.0,105670.0,5.24078145]
[1748568533854,0.00170069,105680.0,105670.0,5.75912645]
[1748568534853,0.00170069,105680.0,105670.0,5.98472145]
[1748568535260,0.00170069,105680.0,105670.0,5.98470945]
[1748568536083,0.00170069,105680.0,105670.0,6.10969845]
[1748568537172,0.00170069,105680.0,105670.0,6.58227245]
[1748568540135,0.00170069,105680.0,105670.0,1.53227245]
[1748568540373,0.00170069,105680.0,105670.0,6.58227245]
[1748568540584,0.00170069,105680.0,105670.0,6.68185245]
[1748568540805,0.00170069,105680.0,105670.0,6.58227245]
[1748568543223,0.00170069,105680.0,105670.0,6.59227245]